Cogmind - Beta 10.2 @@@ ROGUE MODE // 2020.12.17 @ 21:45:38 Player: Meraxes Result: Destroyed by G-47 Trooper with Particle Gun Performance ------------- Evolutions (0) 0 Regions Visited (2) 400 Robots Destroyed (5) 25 Value Destroyed (72) 72 Prototype IDs (0) 0 Alien Tech Used (0) 0 Bonus (0) 0 TOTAL SCORE: 497 Bonus ------- None Cogmind --------- Core Integrity 0/250 Matter 284/300 Energy 100/100 System Corruption 0% Temperature Cool (15) Movement Core (300) Ox5 Location -10/Mines Parts ------- > --- POWER (1) -------- (None) > --- PROPULSION (2) --- (None) > --- UTILITY (2) ------ Large Storage Unit Seismic Analyzer > --- WEAPON (2) ------- (None) > --- INVENTORY (10) --- Heat Sink Large Matter Pod (0) Peak State ------------ > --- POWER ------------ Light Ion Engine > --- PROPULSION ------- Wheel Wheel > --- UTILITY ---------- Heat Sink Seismic Analyzer > --- WEAPON ----------- Small Laser Assault Rifle > --- INVENTORY -------- Light Ion Engine Large Storage Unit Small Laser [Rating: 7] Favorites ----------- Power Light Ion Engine Engine Light Ion Engine Propulsion Wheel Wheel Wheel Utility Seismic Analyzer Device Heat Sink Storage Large Storage Unit Processor Seismic Analyzer Weapon Assault Rifle Energy Gun Small Laser Ballistic Gun Assault Rifle Build | -11 -10 -10 ------- Run | Scr Mat Min Slots Evolved . | . . . Power . | . . . Propulsion . | . . . Utility . | . . . Weapon . | . . . Parts Attached 11 | 6 3 2 Power 3 | 1 1 1 Engine 3 | 1 1 1 Core . | . . . Reactor . | . . . Propulsion 2 | 2 . . Treads . | . . . Leg . | . . . Wheel 2 | 2 . . Hover . | . . . Flight . | . . . Utility 3 | 1 2 . Device 1 | 1 . . Storage 1 | . 1 . Processor 1 | . 1 . Hackware . | . . . Protection . | . . . Artifact . | . . . Weapon 3 | 2 . 1 Energy Gun 2 | 1 . 1 Energy Cannon . | . . . Ballistic Gun 1 | 1 . . Ballistic Cannon . | . . . Launcher . | . . . Special Weapon . | . . . Impact Weapon . | . . . Slashing Weapon . | . . . Piercing Weapon . | . . . Special Melee Weapon . | . . . Unidentified Prototypes . | . . . Parts Lost 8 | . 1 7 Power 3 | . 1 2 Propulsion 2 | . . 2 Utility . | . . . Weapon 3 | . . 3 Highest Loss Streak 6 | . 1 6 Average Slot Usage (%) 76 | . 96 59 Engine 12 | . 14 11 Wheel 16 | . 28 7 Device 3 | . 7 . Storage 10 | . 6 14 Processor 12 | . 10 14 Energy Gun 9 | . 14 5 Ballistic Gun 9 | . 14 6 Naked Turns . | . . . Heaviest Build 22 | 7 22 22 Greatest Support 20 | 20 20 20 Greatest Overweight (x) 6 | . 1 6 Average Overweight (x) . | . . 2 Largest Inventory Capacity 10 | 4 10 10 Average Capacity 6 | 4 6 10 Most Carried 4 | 3 4 4 Average Carried 2 | 1 3 2 Final Capacity 10 | 4 10 10 Final Carried 4 | 3 4 2 Class Distribution -------------------- 100% | Mutant Dominant Class ---------------- Mutant | -10/Materials Mutant | -10/Mines Resources | -11 -10 -10 ----------- Run | Scr Mat Min Matter Collected 332 | 296 36 . Remotely . | . . . Salvage Created 114 | 50 64 . Parts 7 | 4 3 . Haulers Intercepted . | . . . Recyclers Shooed . | . . . Parts Field Recycled . | . . . Retrieved Matter . | . . . Parts Self-Destructed . | . . . Prevented . | . . . Kills | -11 -10 -10 ------- Run | Scr Mat Min Combat Hostiles Destroyed 3 | 1 2 . Guns 3 | 1 2 . Classes Destroyed 4 | 2 2 . Worker 1 | . 1 . Tunneler 1 | 1 . . Swarmer 2 | . 2 . Grunt 1 | 1 . . Best Kill Streak 3 | 1 3 . Combat Bots Only 2 | 1 2 . Max Kills in Single Turn 1 | 1 1 . Gunslinging . | . . . Exploded . | . . . Melee . | . . . Uniques/NPCs Destroyed . | . . . Combat | -11 -10 -10 -------- Run | Scr Mat Min Damage Taken 753 | 98 157 498 Core 263 | 35 42 186 Absorbed by Shields . | . . . Core Remaining (%) 86 | 86 . . Volleys Fired 26 | 12 5 9 Largest 2 | 2 2 2 Hottest 60 | 60 60 60 Shots Fired 40 | 17 9 14 Gun 40 | 17 9 14 Cannon . | . . . Launcher . | . . . Special . | . . . Kinetic 26 | 12 5 9 Thermal 14 | 5 4 5 Explosive . | . . . Electromagnetic . | . . . Robot Hit Streak 4 | 4 2 3 Robot Miss Streak 4 | 4 2 2 Penetration Max . | . . . Secondary Targets 1 | . 1 . Max Gunslinging Chain 1 | . 1 . Shots Hit Robots 19 | 7 4 8 Core Hits 9 | 3 3 3 Critical Hits . | . . . Critical Kills . | . . . Critical Parts Destroyed . | . . . Melee Attacks . | . . . Impact . | . . . Slashing . | . . . Piercing . | . . . Sneak Attacks . | . . . Combat Hostiles . | . . . Follow-up Attacks . | . . . Damage Inflicted 306 | 133 54 119 Guns 306 | 133 54 119 Cannons . | . . . Explosions . | . . . Melee . | . . . Ramming . | . . . Kinetic 199 | 89 23 87 Thermal 107 | 44 31 32 Explosive . | . . . Electromagnetic . | . . . Impact . | . . . Slashing . | . . . Piercing . | . . . Highest Corruption . | . . . Average Corruption . | . . . Corruption Purged . | . . . Overload Shots . | . . . Overflow Damage . | . . . Projectiles . | . . . Explosions . | . . . Melee . | . . . Knockbacks . | . . . Impact . | . . . Kinetic . | . . . Secondary . | . . . Self-Inflicted Damage . | . . . Shots . | . . . Rammed . | . . . Targets Rammed . | . . . Kicked . | . . . Crushed . | . . . Highest Temperature 84 | 12 6 84 Average Temperature 36 | 7 6 48 Received Heat Transfer 348 | 54 12 282 Siege Activations . | . . . Robots Corrupted . | . . . Combat Hostiles . | . . . Parts Fried . | . . . Impact Corruptions . | . . . Robots Melted . | . . . Combat Hostiles . | . . . Parts Melted . | . . . Heat Transferred 250 | 100 75 75 Parts Sabotaged . | . . . Parts Stolen . | . . . Parts Stripped . | . . . Power Chain Reactions . | . . . Missiles Intercepted . | . . . Alert | -11 -10 -10 ------- Run | Scr Mat Min Peak Influence 78 | 25 78 31 Initial 26 | . 16 26 Average 13 | 9 26 8 Maximum Alert Level . | . . . Low Security (%) 100 | 100 100 100 Level 1 . | . . . Level 2 . | . . . Level 3 . | . . . Level 4 . | . . . Level 5 . | . . . High Security . | . . . Max Security . | . . . Squads Dispatched 2 | . 2 . Investigation 1 | . 1 . Extermination . | . . . Reinforcement 1 | . 1 . Assault . | . . . Garrison . | . . . Intercept . | . . . Construction Impeded . | . . . Haulers Reinforced . | . . . Stealth | -11 -10 -10 --------- Run | Scr Mat Min Distress Signals 3 | . 3 . Communications Jammed . | . . . Distress Signals . | . . . Times Spotted 13 | 1 8 4 Peak Tracking Total 6 | 1 6 4 Tactical Retreats . | . . . Traps | -11 -10 -10 ------- Run | Scr Mat Min Traps Triggered . | . . . Indirectly . | . . . Trap Hack Attempts . | . . . Triggered . | . . . Disarmed . | . . . Reprogrammed . | . . . Reused . | . . . Traps Extracted . | . . . Installed . | . . . Triggered . | . . . Machines | -11 -10 -10 ---------- Run | Scr Mat Min Machines Disabled 1 | . . 1 Max in Single Turn 1 | . . 1 Machines Sabotaged . | . . . Garrisons Compromised . | . . . Overloaded Fab Kills . | . . . Fab Network Shutdowns . | . . . Hacking | -11 -10 -10 --------- Run | Scr Mat Min Machines Accessed 1 | . 1 . Terminals 1 | . 1 . Fabricators . | . . . Repair Stations . | . . . Recycling Units . | . . . Scanalyzers . | . . . Garrison Access . | . . . Total Hacks 4 | . 4 . Successful 3 | . 3 . Failed 1 | . 1 . Catastrophic . | . . . Database Lockouts . | . . . Manual . | . . . Terminals 4 | . 4 . Fabricators . | . . . Repair Stations . | . . . Recycling Units . | . . . Scanalyzers . | . . . Garrison Access . | . . . Terminal Hacks 3 | . 3 . Record 1 | . 1 . Recall Investigation 1 | . 1 . Zone Layout 1 | . 1 . Fabricator Hacks . | . . . Repair Station Hacks . | . . . Recycling Unit Hacks . | . . . Scanalyzer . | . . . Garrison Access Hacks . | . . . Unauthorized Hacks . | . . . Terminals . | . . . Fabricators . | . . . Repair Stations . | . . . Recycling Units . | . . . Scanalyzers . | . . . Garrison Access . | . . . Data Cores Recovered . | . . . Used . | . . . Hacking Detections 1 | . 1 . Full Trace Events 1 | . 1 . Feedback Events . | . . . Feedback Blocked . | . . . Robot Schematics Acquired . | . . . Robots Built . | . . . Matter . | . . . Time . | . . . Total Robot Build Rating . | . . . Part Schematics Acquired . | . . . Parts Built . | . . . Matter . | . . . Time . | . . . Total Part Build Rating . | . . . Parts Repaired . | . . . Time . | . . . Parts Recycled . | . . . Recycled Matter . | . . . Retrieved Matter . | . . . Retrieved Components . | . . . Parts Scanalyzed . | . . . Part Schematics Acquired . | . . . Parts Damaged . | . . . Bothacking | -11 -10 -10 ------------ Run | Scr Mat Min Used RIF Installer . | . . . Robots Hacked . | . . . Non-combat . | . . . Combat . | . . . Robot Hacks Applied . | . . . Relay Couplers Released . | . . . Robots Rewired . | . . . Allies Hacked . | . . . Hacks Repelled . | . . . Allies | -11 -10 -10 -------- Run | Scr Mat Min Total Allies . | . . . Largest Group . | . . . Highest-Rated Group . | . . . Highest-Rated Ally . | . . . Total Orders . | . . . Ally Attacks . | . . . Total Damage . | . . . Kills . | . . . Allies Corrupted . | . . . Allies Melted . | . . . Intel | -11 -10 -10 ------- Run | Scr Mat Min Robot Analysis Total . | . . . Derelict Logs Recovered . | . . . Drone Launches . | . . . Drone Recoveries . | . . . Exploration | -11 -10 -10 ------------- Run | Scr Mat Min Turns Passed 342 | 139 90 113 Spaces Moved 261 | 129 84 48 Core 44 | 26 . 18 Treads . | . . . Legs . | . . . Wheels 217 | 103 84 30 Hover . | . . . Flight . | . . . Fastest Speed 50 | 50 80 90 Average Speed 97 | 73 82 185 Slowest Speed 350 | 80 90 350 Overloaded Moves . | . . . Propulsion Burnouts . | . . . Robots Hopped . | . . . Cave-ins Triggered . | . . . Exploration Rate (%) 14 | 9 22 12 Regions Visited 2 Branch Regions 1 Pre-discovered Areas . | . . . Known Exits Taken . | . . . Unknown Exits Taken 2 | 1 1 . Scrap Searched . | . . . Spaces Dug . | . . . Terrain Destroyed . | . . . Melee . | . . . Projectile . | . . . AOE . | . . . Terrain Rammed . | . . . Walls Destroyed . | . . . Machines Disabled . | . . . Actions | -11 -10 -10 --------- Run | Scr Mat Min Total 308 | 154 95 59 Wait . | . . . Move 259 | 128 83 48 Hop . | . . . Pick Up 11 | 8 3 . Fast Attach 2 | 1 1 . Attach 9 | 5 2 2 Detach . | . . . Swap . | . . . Drop 1 | . 1 . Fire 26 | 12 5 9 Melee . | . . . Ram . | . . . Kick . | . . . Crush . | . . . Escape Stasis . | . . . Rewire . | . . . Trap . | . . . Miscellaneous . | . . . Route ------- -11/Scrapyard -10/Materials -10/Mines History --------- Turn | Location | Event 2 | -11/Scrapyard | Met Revision 17 53 | -11/Scrapyard | Discovered new exit (range 8) 140 | -11/Scrapyard | Entered Materials 198 | -10/Materials | Discovered new exit (range 16) 230 | -10/Materials | Entered Mines 280 | -10/Mines | Core integrity fell below 50% 316 | -10/Mines | Build established: Mutant 320 | -10/Mines | Lost 6 parts (1p2n3w) 320 | -10/Mines | Core integrity fell below 20% 343 | -10/Mines | Destroyed by G-47 Trooper with Particle Gun Last Messages --------------- 00202_ ALERT: Hostiles spotted, dispatching reinforcements to Terminal M002. [Achievement: Uninvited Guest] 00213_ K-01 Serf destroyed. 00216_ S-10 Pest destroyed. 00219_ Switching to secondary target: G-34 Mercenary. 00226_ Acquired 16 matter. 00227_ Lgt. Ion Engine destroyed. 00228_ Acquired Lgt. Ion Engine. 00229_ Acquired 20 matter. LOCATION=UNKNOWN GOAL=ESCAPE Something is scanning the area. 00260_ Sml. Laser destroyed. 00266_ Seismic Survey Station disabled. 00267_ Wheel destroyed. 00273_ Sml. Laser destroyed. 00281_ Assault Rifle destroyed. 00289_ Lgt. Ion Engine destroyed. [Achievement: First Step to Greatness] Map ----- +----------------------------------------------------+ | | | | | | | | | | | ?????????????????????????????????????????????????? | | ?????????????????????????????????????????????????? | | ?????????????????????????????????????????????????? | | ?????????????????????????????????????????????????? | | ?????????????????????????????????????????????????? | | ?????????????????????????????????????????????????? | | ?????????????????????????????????????????????????? | | ??#######????????????????????????????????????????? | | ?? ????????????????????????????????????????? | | ?? """ ???????????????????????????????????????? | | ?# """ ############???????????????????????????? | | ?# "" #???????????????????????????? | | ?# ######### #####???????????????????????? | | ?# """ ????????# #???????????????????????? | | ?# """ ?????????# #???????????????????????? | | ?# """ ?????????##### #???????????????????????? | | ???? ??????????????#g #???????????????????????? | | ???### #?????????????## #???????????????????????? | | ?????# ?????????????## #???????????????????????? | | ?????#??????????????# ##??????????????????????? | | ????????????????????# @####???????????????????? | | ????????????????????## ##??????????????????? | | ?????????????????????## ##?????????????????? | | ??????????????????????## t ##????????????????? | | ???????????????????????## #????????????????? | | ????????????????????????# #???????????????? | | ???????????????????????# #???????????????? | | ????????????????????? #???????????????? | | ????????????????????### """gg #???????????????? | | ??????????????????????## """ ##???????????????? | | ???????????????????????## """ #????????????????? | | ????????????????????????## ????????????????? | | ?????????????????????????## ???????????????? | | ???????????????????????????#### ??????????????? | | ???????????????????????????????# ??????????????? | | ???????????????????????????????? ??????????????? | | ????????????????????????????????# ???????????????? | | ?????????????????????????????????#???????????????? | | ?????????????????????????????????????????????????? | | ?????????????????????????????????????????????????? | | ?????????????????????????????????????????????????? | | ?????????????????????????????????????????????????? | | ?????????????????????????????????????????????????? | | ?????????????????????????????????????????????????? | | ?????????????????????????????????????????????????? | +----------------------------------------------------+ Best States ------------- Heat Dissipation 35 Energy Generation 10 Energy Capacity 125 Matter Stores 300 Matter Capacity 300 Sight Range 16 Terrain Scan Density 60 Evasion (%) 50 Item Schematics ----------------- None Robot Schematics ------------------ None Fabricated ------------ Nothing Alien Tech Used ----------------- None Achievements -------------- First Step to Greatness One Hack Too Far Uninvited Guest Challenges ------------ None Game ------ Seed IntegrityExplosiveSheargun Manual? 0 Play Time 00:30:55 Cumulative 0.9 hours Start 2020.12.17 @ 18:30:00 End 2020.12.17 @ 21:45:38 Sessions 3 Manual Loads 0 Difficulty Rogue Special Mode None Game No. 3 Rogue 3 Adventurer 0 Explorer 0 Win Type - Total 0 Types 0/0/0/0/0/0/0/0/0 Lore% 0 Gallery% 1 Achievement% 1 Wizard Run 0 Options --------- ASCII 0 Keyboard 0 Movement Vi Keybinds 0 Fullscreen 1 Font 28/SmallcapsGlow Map View 67x55 Tactical HUD 1 Map Filters NONE Filters NONE Steam 1 RUN: 123ddc94-2867-44c9-9323-04643c4c4c4b